[Event "Late-Titled-Tuesday-Blitz-April-16-2024"]
[Site "Chess.com"]
[Date "2024.04.16"]
[Round "5"]
[White "diokletian"]
[Black "alexrustemov"]
[Result "0-1"]
[WhiteElo "2668"]
[BlackElo "2858"]
[TimeControl "180+1"]
[EndTime "14:54:50 PDT"]
[Termination "alexrustemov won on time"]

1. d4 {[%clk 0:02:58.4]} 1... d5 {[%clk 0:03:00.2]} 2. c4 {[%clk 0:02:58.3]}
2... dxc4 {[%clk 0:03:00.4]} 3. e3 {[%clk 0:02:58.2]} 3... Nf6 {[%clk
0:02:59.7]} 4. Bxc4 {[%clk 0:02:58.4]} 4... e6 {[%clk 0:03:00.2]} 5. Nf3 {[%clk
0:02:58.8]} 5... c5 {[%clk 0:03:00.4]} 6. O-O {[%clk 0:02:59.4]} 6... a6 {[%clk
0:03:00.5]} 7. Bd3 {[%clk 0:02:56.4]} 7... Nbd7 {[%clk 0:02:59]} 8. Nc3 {[%clk
0:02:55.7]} 8... b6 {[%clk 0:02:59.1]} 9. Qe2 {[%clk 0:02:49.3]} 9... Bb7 {[%clk
0:02:59.4]} 10. Rd1 {[%clk 0:02:48.5]} 10... Qb8 {[%clk 0:02:58.8]} 11. b3
{[%clk 0:02:38.8]} 11... Bd6 {[%clk 0:02:58.3]} 12. Bb2 {[%clk 0:02:31.6]} 12...
cxd4 {[%clk 0:02:47.3]} 13. exd4 {[%clk 0:02:31.3]} 13... Bxf3 {[%clk
0:02:29.8]} 14. Qxf3 {[%clk 0:02:31.5]} 14... Bxh2+ {[%clk 0:02:30.4]} 15. Kf1
{[%clk 0:02:28.6]} 15... Bd6 {[%clk 0:02:29.3]} 16. d5 {[%clk 0:02:22.7]} 16...
e5 {[%clk 0:02:11.8]} 17. Qh3 {[%clk 0:02:00.9]} 17... h6 {[%clk 0:02:03.3]} 18.
Ne4 {[%clk 0:01:54.7]} 18... Nxe4 {[%clk 0:02:00.3]} 19. Bxe4 {[%clk 0:01:54.4]}
19... Nf6 {[%clk 0:01:57.7]} 20. Bf5 {[%clk 0:01:54.3]} 20... O-O {[%clk
0:01:50.7]} 21. Rac1 {[%clk 0:01:54.3]} 21... Rd8 {[%clk 0:01:34.3]} 22. Rc6
{[%clk 0:01:53.6]} 22... Qb7 {[%clk 0:01:28.2]} 23. Qf3 {[%clk 0:01:27.3]} 23...
Rab8 {[%clk 0:01:20.4]} 24. a4 {[%clk 0:01:08.7]} 24... Qe7 {[%clk 0:01:19.6]}
25. Re1 {[%clk 0:01:04.4]} 25... Re8 {[%clk 0:01:17.5]} 26. Qg3 {[%clk
0:01:01.5]} 26... b5 {[%clk 0:01:07.1]} 27. Rxa6 {[%clk 0:00:52.7]} 27... bxa4
{[%clk 0:01:06.1]} 28. Rxa4 {[%clk 0:00:45.3]} 28... e4 {[%clk 0:00:56]} 29. Qh4
{[%clk 0:00:36.3]} 29... Be5 {[%clk 0:00:49.8]} 30. Bxe5 {[%clk 0:00:27.2]}
30... Qxe5 {[%clk 0:00:50.7]} 31. Bxe4 {[%clk 0:00:27.6]} 31... Qc3 {[%clk
0:00:44]} 32. Qg3 {[%clk 0:00:16.9]} 32... Qxg3 {[%clk 0:00:39.3]} 33. fxg3
{[%clk 0:00:17.3]} 33... Rxb3 {[%clk 0:00:39.8]} 34. Bf3 {[%clk 0:00:16.9]}
34... Rbb8 {[%clk 0:00:28.9]} 35. Rxe8+ {[%clk 0:00:16.7]} 35... Rxe8 {[%clk
0:00:28.6]} 36. Rd4 {[%clk 0:00:14.7]} 36... Kf8 {[%clk 0:00:27.7]} 37. d6
{[%clk 0:00:14.7]} 37... Rd8 {[%clk 0:00:27.5]} 38. Bc6 {[%clk 0:00:14.2]} 38...
Ne8 {[%clk 0:00:25.9]} 39. Bxe8 {[%clk 0:00:11.8]} 39... Kxe8 {[%clk 0:00:26.2]}
40. Re4+ {[%clk 0:00:12]} 40... Kf8 {[%clk 0:00:26.3]} 41. Rd4 {[%clk
0:00:12.1]} 41... f6 {[%clk 0:00:25.8]} 42. Kf2 {[%clk 0:00:10.4]} 42... Kf7
{[%clk 0:00:26.4]} 43. Kf3 {[%clk 0:00:08.6]} 43... Ke6 {[%clk 0:00:26.8]} 44.
Kf4 {[%clk 0:00:08.6]} 44... Rxd6 {[%clk 0:00:25.5]} 45. Re4+ {[%clk 0:00:08.9]}
45... Kf7 {[%clk 0:00:25.6]} 46. Ra4 {[%clk 0:00:09]} 46... Rd2 {[%clk
0:00:24.4]} 47. Kf3 {[%clk 0:00:09.5]} 47... h5 {[%clk 0:00:23.5]} 48. g4 {[%clk
0:00:07.7]} 48... h4 {[%clk 0:00:21.9]} 49. Ra5 {[%clk 0:00:07.8]} 49... g5
{[%clk 0:00:19.3]} 50. Ra7+ {[%clk 0:00:07.8]} 50... Kg6 {[%clk 0:00:19.4]} 51.
Ra8 {[%clk 0:00:08.1]} 51... Rd3+ {[%clk 0:00:19.6]} 52. Kf2 {[%clk 0:00:08.6]}
52... Rg3 {[%clk 0:00:20.4]} 53. Ra4 {[%clk 0:00:08.9]} 53... Rb3 {[%clk
0:00:20]} 54. Rc4 {[%clk 0:00:09.2]} 54... Kf7 {[%clk 0:00:19.2]} 55. Kg1 {[%clk
0:00:09.5]} 55... Ke6 {[%clk 0:00:17.7]} 56. Kh2 {[%clk 0:00:09.4]} 56... Rd3
{[%clk 0:00:17.6]} 57. Ra4 {[%clk 0:00:09.6]} 57... Ke5 {[%clk 0:00:18]} 58.
Ra5+ {[%clk 0:00:09.1]} 58... Rd5 {[%clk 0:00:17.3]} 59. Ra6 {[%clk 0:00:09]}
59... Rd4 {[%clk 0:00:17]} 60. Kh3 {[%clk 0:00:09.2]} 60... Rd3+ {[%clk
0:00:16.9]} 61. Kh2 {[%clk 0:00:09.4]} 61... Rg3 {[%clk 0:00:17.1]} 62. Ra5+
{[%clk 0:00:08.5]} 62... Ke6 {[%clk 0:00:15.4]} 63. Ra6+ {[%clk 0:00:08.7]}
63... Kf7 {[%clk 0:00:15.7]} 64. Ra7+ {[%clk 0:00:08.9]} 64... Kg6 {[%clk
0:00:15.9]} 65. Ra4 {[%clk 0:00:09.8]} 65... Rd3 {[%clk 0:00:15.5]} 66. Rb4
{[%clk 0:00:10]} 66... Rd1 {[%clk 0:00:15.5]} 67. Ra4 {[%clk 0:00:10.3]} 67...
Rf1 {[%clk 0:00:15.4]} 68. Rb4 {[%clk 0:00:08.4]} 68... Rf4 {[%clk 0:00:15]} 69.
Rxf4 {[%clk 0:00:05.9]} 69... gxf4 {[%clk 0:00:15.9]} 70. Kg1 {[%clk 0:00:02.3]}
70... Kg5 {[%clk 0:00:16.1]} 71. Kf2 {[%clk 0:00:02.3]} 71... Kxg4 {[%clk
0:00:16.4]} 0-1

[Event "Late-Titled-Tuesday-Blitz-April-16-2024"]
[Site "Chess.com"]
[Date "2024.04.16"]
[Round "5"]
[White "Glidzhian_Gor"]
[Black "Rainbow2014"]
[Result "0-1"]
[WhiteElo "2579"]
[BlackElo "2451"]
[TimeControl "180+1"]
[EndTime "14:54:50 PDT"]
[Termination "Rainbow2014 won by checkmate"]

1. e4 {[%clk 0:02:55.5]} 1... e5 {[%clk 0:02:57.2]} 2. Nf3 {[%clk 0:02:55]} 2...
Nc6 {[%clk 0:02:57.5]} 3. Bc4 {[%clk 0:02:53.1]} 3... Bc5 {[%clk 0:02:56.8]} 4.
c3 {[%clk 0:02:53.3]} 4... Nf6 {[%clk 0:02:56.7]} 5. d4 {[%clk 0:02:53.4]} 5...
exd4 {[%clk 0:02:57.1]} 6. cxd4 {[%clk 0:02:54.3]} 6... Bb4+ {[%clk 0:02:57.5]}
7. Nc3 {[%clk 0:02:54.8]} 7... Nxe4 {[%clk 0:02:56.9]} 8. O-O {[%clk 0:02:55.5]}
8... Bxc3 {[%clk 0:02:55.6]} 9. d5 {[%clk 0:02:56.1]} 9... Bf6 {[%clk
0:02:54.9]} 10. Re1 {[%clk 0:02:56]} 10... Ne7 {[%clk 0:02:53.8]} 11. Rxe4
{[%clk 0:02:50.3]} 11... O-O {[%clk 0:02:53.8]} 12. d6 {[%clk 0:02:44.6]} 12...
cxd6 {[%clk 0:02:54.7]} 13. Bg5 {[%clk 0:02:44.7]} 13... Nf5 {[%clk 0:02:20]}
14. Bxf6 {[%clk 0:02:00]} 14... Qxf6 {[%clk 0:02:20.9]} 15. Rf4 {[%clk
0:02:00.7]} 15... d5 {[%clk 0:01:59.2]} 16. Bxd5 {[%clk 0:00:57.8]} 16... d6
{[%clk 0:01:55.7]} 17. g4 {[%clk 0:00:51.5]} 17... Qh6 {[%clk 0:01:36.5]} 18.
Rxf5 {[%clk 0:00:50.6]} 18... Bxf5 {[%clk 0:01:36.4]} 19. gxf5 {[%clk
0:00:51.5]} 19... Qh5 {[%clk 0:01:31.5]} 20. Qd3 {[%clk 0:00:49]} 20... Rae8
{[%clk 0:01:28.4]} 21. Kh1 {[%clk 0:00:49.4]} 21... Qh6 {[%clk 0:01:10.8]} 22.
Rg1 {[%clk 0:00:49.3]} 22... Rc8 {[%clk 0:01:11.1]} 23. Ng5 {[%clk 0:00:44.7]}
23... Rc7 {[%clk 0:01:06.9]} 24. f6 {[%clk 0:00:42.2]} 24... g6 {[%clk
0:01:00.9]} 25. Qe4 {[%clk 0:00:37.4]} 25... b6 {[%clk 0:00:55.7]} 26. b4 {[%clk
0:00:32.7]} 26... a5 {[%clk 0:00:55.1]} 27. a3 {[%clk 0:00:32.6]} 27... Qh5
{[%clk 0:00:49.1]} 28. Rg3 {[%clk 0:00:18.6]} 28... Qd1+ {[%clk 0:00:47.4]} 29.
Kg2 {[%clk 0:00:18.9]} 29... Qc2 {[%clk 0:00:42.9]} 30. Qxc2 {[%clk 0:00:17.4]}
30... Rxc2 {[%clk 0:00:42.4]} 31. Re3 {[%clk 0:00:18.1]} 31... Rd2 {[%clk
0:00:27.2]} 32. Bxf7+ {[%clk 0:00:11.7]} 32... Rxf7 {[%clk 0:00:26.3]} 33. Re8+
{[%clk 0:00:12.4]} 33... Rf8 {[%clk 0:00:26.9]} 34. f7+ {[%clk 0:00:11.8]} 34...
Kg7 {[%clk 0:00:26.9]} 35. Re7 {[%clk 0:00:09.8]} 35... axb4 {[%clk 0:00:17.5]}
36. axb4 {[%clk 0:00:09.7]} 36... d5 {[%clk 0:00:18.1]} 37. Rb7 {[%clk
0:00:09.7]} 37... Re2 {[%clk 0:00:15.8]} 38. Rxb6 {[%clk 0:00:10]} 38... Rxf7
{[%clk 0:00:15.4]} 39. Nxf7 {[%clk 0:00:10.2]} 39... Kxf7 {[%clk 0:00:16.3]} 40.
Rd6 {[%clk 0:00:10.7]} 40... Rd2 {[%clk 0:00:15.8]} 41. b5 {[%clk 0:00:11]}
41... Ke7 {[%clk 0:00:15.4]} 42. Ra6 {[%clk 0:00:10.7]} 42... d4 {[%clk
0:00:15]} 43. Kf3 {[%clk 0:00:10.7]} 43... Rb2 {[%clk 0:00:14.5]} 44. Rb6 {[%clk
0:00:11.3]} 44... h5 {[%clk 0:00:13.8]} 45. h4 {[%clk 0:00:11.4]} 45... Kf7
{[%clk 0:00:13.2]} 46. Ke4 {[%clk 0:00:09.3]} 46... Rxf2 {[%clk 0:00:12.5]} 47.
Rd6 {[%clk 0:00:09.1]} 47... Rh2 {[%clk 0:00:06.2]} 48. Ke5 {[%clk 0:00:09.6]}
48... Rxh4 {[%clk 0:00:05.7]} 49. b6 {[%clk 0:00:10.2]} 49... Rh1 {[%clk
0:00:04.9]} 50. Rd7+ {[%clk 0:00:10.8]} 50... Ke8 {[%clk 0:00:04.3]} 51. Rh7
{[%clk 0:00:11.2]} 51... Rb1 {[%clk 0:00:02.7]} 52. b7 {[%clk 0:00:11.6]} 52...
Kd8 {[%clk 0:00:03.2]} 53. Kd6 {[%clk 0:00:11.1]} 53... Rb6+ {[%clk 0:00:02.4]}
54. Kc5 {[%clk 0:00:11.8]} 54... Rb1 {[%clk 0:00:02.7]} 55. Kd6 {[%clk
0:00:11.9]} 55... Rb6+ {[%clk 0:00:02.8]} 56. Kc5 {[%clk 0:00:12.6]} 56... Rb1
{[%clk 0:00:03.3]} 57. Kc6 {[%clk 0:00:12.6]} 57... h4 {[%clk 0:00:03.2]} 58.
Rh8+ {[%clk 0:00:12.1]} 58... Ke7 {[%clk 0:00:03.8]} 59. b8=Q {[%clk 0:00:12.5]}
59... Rxb8 {[%clk 0:00:04.5]} 60. Rxb8 {[%clk 0:00:13.2]} 60... g5 {[%clk
0:00:05]} 61. Rg8 {[%clk 0:00:13.4]} 61... Kf6 {[%clk 0:00:05]} 62. Kd5 {[%clk
0:00:14.1]} 62... Kf5 {[%clk 0:00:05.6]} 63. Kxd4 {[%clk 0:00:14.4]} 63... Kf4
{[%clk 0:00:05.8]} 64. Kd3 {[%clk 0:00:15]} 64... Kf3 {[%clk 0:00:05.9]} 65. Kd2
{[%clk 0:00:15.3]} 65... h3 {[%clk 0:00:06.7]} 66. Rf8+ {[%clk 0:00:15.7]} 66...
Kg2 {[%clk 0:00:06.5]} 67. Ke2 {[%clk 0:00:16.6]} 67... h2 {[%clk 0:00:06.8]}
68. Rg8 {[%clk 0:00:17.5]} 68... h1=Q {[%clk 0:00:06.7]} 69. Rxg5+ {[%clk
0:00:18.2]} 69... Kh2 {[%clk 0:00:07.1]} 70. Rh5+ {[%clk 0:00:18.7]} 70... Kg1
{[%clk 0:00:08]} 71. Rg5+ {[%clk 0:00:19.2]} 71... Kh2 {[%clk 0:00:08]} 72. Kf2
{[%clk 0:00:19.2]} 72... Qd1 {[%clk 0:00:02.7]} 73. Re5 {[%clk 0:00:16.1]} 73...
Qd2+ {[%clk 0:00:03.1]} 74. Kf3 {[%clk 0:00:16.3]} 74... Qd1+ {[%clk 0:00:03.4]}
75. Re2+ {[%clk 0:00:16.3]} 75... Kh3 {[%clk 0:00:03.4]} 76. Ke3 {[%clk
0:00:16.7]} 76... Kg4 {[%clk 0:00:03.7]} 77. Rd2 {[%clk 0:00:17.5]} 77... Qe1+
{[%clk 0:00:04]} 78. Kd3 {[%clk 0:00:18.4]} 78... Kf4 {[%clk 0:00:04.2]} 79. Re2
{[%clk 0:00:18.3]} 79... Qf1 {[%clk 0:00:04.3]} 80. Kd2 {[%clk 0:00:18]} 80...
Qa1 {[%clk 0:00:05.2]} 81. Rf2+ {[%clk 0:00:16.9]} 81... Ke4 {[%clk 0:00:05.8]}
82. Re2+ {[%clk 0:00:17.8]} 82... Kd4 {[%clk 0:00:06.4]} 83. Re1 {[%clk
0:00:18.2]} 83... Qa2+ {[%clk 0:00:06.9]} 84. Kc1 {[%clk 0:00:18.4]} 84... Kd3
{[%clk 0:00:06.8]} 85. Rd1+ {[%clk 0:00:15.8]} 85... Kc3 {[%clk 0:00:07.3]} 86.
Rd2 {[%clk 0:00:16]} 86... Qxd2+ {[%clk 0:00:07]} 87. Kb1 {[%clk 0:00:15.7]}
87... Qb2# {[%clk 0:00:07.9]} 0-1

[Event "Late-Titled-Tuesday-Blitz-April-16-2024"]
[Site "Chess.com"]
[Date "2024.04.16"]
[Round "5"]
[White "maximnovik"]
[Black "GoltsevDmitry2000"]
[Result "0-1"]
[WhiteElo "2570"]
[BlackElo "2788"]
[TimeControl "180+1"]
[EndTime "14:54:54 PDT"]
[Termination "GoltsevDmitry2000 won by resignation"]

1. e4 {[%clk 0:03:00.5]} 1... e6 {[%clk 0:03:00.1]} 2. d4 {[%clk 0:02:55.6]}
2... d5 {[%clk 0:02:59.5]} 3. e5 {[%clk 0:02:55.9]} 3... c5 {[%clk 0:02:59.6]}
4. c3 {[%clk 0:02:56.5]} 4... Nc6 {[%clk 0:03:00.2]} 5. Nf3 {[%clk 0:02:57.1]}
5... Nge7 {[%clk 0:02:59.7]} 6. Na3 {[%clk 0:02:56]} 6... cxd4 {[%clk
0:02:59.8]} 7. cxd4 {[%clk 0:02:56.1]} 7... Nf5 {[%clk 0:03:00.3]} 8. Nc2 {[%clk
0:02:56.2]} 8... h5 {[%clk 0:03:00.7]} 9. Bd3 {[%clk 0:02:55.2]} 9... Be7 {[%clk
0:03:00.1]} 10. O-O {[%clk 0:02:54]} 10... g5 {[%clk 0:02:59.8]} 11. Be3 {[%clk
0:02:28.9]} 11... g4 {[%clk 0:02:40.5]} 12. Nfe1 {[%clk 0:02:28.6]} 12... Qb6
{[%clk 0:02:36.9]} 13. Bxf5 {[%clk 0:02:26.2]} 13... exf5 {[%clk 0:02:36.8]} 14.
Nd3 {[%clk 0:02:26.5]} 14... Be6 {[%clk 0:02:34.1]} 15. Qd2 {[%clk 0:02:16]}
15... Rg8 {[%clk 0:02:09.8]} 16. b4 {[%clk 0:02:13.3]} 16... Rc8 {[%clk
0:02:01.3]} 17. a4 {[%clk 0:02:12.6]} 17... a5 {[%clk 0:01:52.1]} 18. b5 {[%clk
0:02:08.8]} 18... Nb8 {[%clk 0:01:37.7]} 19. Rac1 {[%clk 0:02:06.1]} 19... Nd7
{[%clk 0:01:29.8]} 20. Na1 {[%clk 0:02:01.7]} 20... Rc4 {[%clk 0:01:25.9]} 21.
Rxc4 {[%clk 0:01:49.5]} 21... dxc4 {[%clk 0:01:25.9]} 22. d5 {[%clk 0:01:49.2]}
22... Qc7 {[%clk 0:01:02.8]} 23. dxe6 {[%clk 0:01:46.7]} 23... cxd3 {[%clk
0:01:03]} 24. exd7+ {[%clk 0:01:46.4]} 24... Qxd7 {[%clk 0:01:03.9]} 25. Rd1
{[%clk 0:01:42]} 25... Bb4 {[%clk 0:01:01.3]} 26. Qxd3 {[%clk 0:01:40.3]} 26...
Qxd3 {[%clk 0:01:01.2]} 27. Rxd3 {[%clk 0:01:40.1]} 27... Ke7 {[%clk 0:01:01.7]}
28. Nb3 {[%clk 0:01:38.3]} 28... Rc8 {[%clk 0:01:00.5]} 29. g3 {[%clk
0:01:38.1]} 29... Rc2 {[%clk 0:00:57.5]} 30. Bg5+ {[%clk 0:01:34]} 30... Kf8
{[%clk 0:00:49.9]} 31. Rd8+ {[%clk 0:01:29]} 31... Kg7 {[%clk 0:00:49.9]} 32.
Nd4 {[%clk 0:01:28.4]} 32... Ra2 {[%clk 0:00:36.3]} 33. Bf6+ {[%clk 0:01:28]}
33... Kg6 {[%clk 0:00:20.2]} 34. Rg8+ {[%clk 0:01:26.8]} 34... Kh7 {[%clk
0:00:20.2]} 35. Rg7+ {[%clk 0:01:25.8]} 35... Kh8 {[%clk 0:00:20.7]} 36. Rxf7+
{[%clk 0:01:12]} 36... Kg8 {[%clk 0:00:20.2]} 37. Rg7+ {[%clk 0:01:11.3]} 37...
Kf8 {[%clk 0:00:20.6]} 38. Ne6+ {[%clk 0:01:11.1]} 38... Ke8 {[%clk 0:00:20.7]}
39. Nc7+ {[%clk 0:01:10.3]} 39... Kf8 {[%clk 0:00:20.7]} 40. e6 {[%clk
0:01:07.4]} 40... Re2 {[%clk 0:00:14.6]} 41. e7+ {[%clk 0:00:57.9]} 41... Bxe7
{[%clk 0:00:13.9]} 42. Bxe7+ {[%clk 0:00:56.1]} 42... Kxg7 {[%clk 0:00:13.4]}
43. Bc5 {[%clk 0:00:52.3]} 43... h4 {[%clk 0:00:10.6]} 44. gxh4 {[%clk
0:00:51.9]} 44... f4 {[%clk 0:00:11.1]} 45. Kg2 {[%clk 0:00:51]} 45... Rc2
{[%clk 0:00:11.1]} 46. Bb6 {[%clk 0:00:48.2]} 46... Rc4 {[%clk 0:00:10]} 47.
Ne8+ {[%clk 0:00:46.2]} 47... Kg6 {[%clk 0:00:09.4]} 48. Nd6 {[%clk 0:00:45.2]}
48... Rxa4 {[%clk 0:00:09.5]} 49. Nxb7 {[%clk 0:00:44.8]} 49... Rb4 {[%clk
0:00:10.1]} 50. Nd6 {[%clk 0:00:44.7]} 50... a4 {[%clk 0:00:10.3]} 51. Bc5
{[%clk 0:00:44.8]} 51... Rb3 {[%clk 0:00:09.6]} 52. b6 {[%clk 0:00:40.9]} 52...
a3 {[%clk 0:00:09.7]} 53. b7 {[%clk 0:00:41]} 53... a2 {[%clk 0:00:09.6]} 54.
Bd4 {[%clk 0:00:41.4]} 54... Kh5 {[%clk 0:00:05.9]} 55. h3 {[%clk 0:00:37.8]}
55... gxh3+ {[%clk 0:00:05.6]} 56. Kh2 {[%clk 0:00:37.2]} 56... Kxh4 {[%clk
0:00:06.1]} 57. Be5 {[%clk 0:00:31.4]} 57... Kg4 {[%clk 0:00:05.8]} 58. Kh1
{[%clk 0:00:25.6]} 58... Rb1+ {[%clk 0:00:05.7]} 59. Kh2 {[%clk 0:00:25.7]}
59... Kf3 {[%clk 0:00:06.6]} 60. Bd4 {[%clk 0:00:23.5]} 60... Ke2 {[%clk
0:00:06.3]} 61. Kxh3 {[%clk 0:00:23.5]} 61... Kd3 {[%clk 0:00:06.7]} 62. Be5
{[%clk 0:00:23.1]} 62... f3 {[%clk 0:00:06.6]} 63. Kg3 {[%clk 0:00:23.3]} 63...
Ke2 {[%clk 0:00:07]} 64. Bd4 {[%clk 0:00:23.5]} 64... Rb4 {[%clk 0:00:06.5]} 65.
Be5 {[%clk 0:00:23]} 65... Rb3 {[%clk 0:00:06.4]} 66. Bd4 {[%clk 0:00:21.9]}
66... Rb1 {[%clk 0:00:06.2]} 67. Kf4 {[%clk 0:00:21.6]} 67... Rb4 {[%clk
0:00:05.6]} 68. Ke5 {[%clk 0:00:19.6]} 68... Rxd4 {[%clk 0:00:05.5]} 69. b8=Q
{[%clk 0:00:18.8]} 69... a1=Q {[%clk 0:00:06.1]} 70. Qb5+ {[%clk 0:00:18.3]}
70... Rd3+ {[%clk 0:00:06.6]} 71. Ke6 {[%clk 0:00:17.6]} 71... Qa2+ {[%clk
0:00:05.1]} 72. Kd7 {[%clk 0:00:16.8]} 72... Qd5 {[%clk 0:00:05.5]} 73. Qb2+
{[%clk 0:00:16.1]} 73... Rd2 {[%clk 0:00:06]} 74. Qf6 {[%clk 0:00:15.8]} 74...
Qxd6+ {[%clk 0:00:05.7]} 75. Qxd6 {[%clk 0:00:15.8]} 75... Rxd6+ {[%clk
0:00:06.6]} 76. Kxd6 {[%clk 0:00:16.2]} 76... Kxf2 {[%clk 0:00:07.5]} 77. Ke5
{[%clk 0:00:16.9]} 77... Ke2 {[%clk 0:00:08.4]} 78. Kf4 {[%clk 0:00:17.3]} 78...
f2 {[%clk 0:00:09.3]} 79. Ke4 {[%clk 0:00:17.7]} 79... f1=Q {[%clk 0:00:10.2]}
80. Kd4 {[%clk 0:00:18.4]} 80... Qf3 {[%clk 0:00:10.7]} 81. Ke5 {[%clk
0:00:18.6]} 81... Qg4 {[%clk 0:00:11]} 82. Kd5 {[%clk 0:00:18.7]} 82... Kd3
{[%clk 0:00:10.8]} 0-1

[Event "Late-Titled-Tuesday-Blitz-April-16-2024"]
[Site "Chess.com"]
[Date "2024.04.16"]
[Round "5"]
[White "Firouzja2003"]
[Black "Guriempire"]
[Result "1/2-1/2"]
[WhiteElo "3030"]
[BlackElo "2816"]
[TimeControl "180+1"]
[EndTime "14:54:58 PDT"]
[Termination "Game drawn by stalemate"]

1. e4 {[%clk 0:03:00.9]} 1... e5 {[%clk 0:02:56.8]} 2. Nf3 {[%clk 0:02:58.8]}
2... Nc6 {[%clk 0:02:57]} 3. Bb5 {[%clk 0:02:58.8]} 3... a6 {[%clk 0:02:57.2]}
4. Ba4 {[%clk 0:02:59.1]} 4... Nf6 {[%clk 0:02:55.7]} 5. O-O {[%clk 0:02:59]}
5... b5 {[%clk 0:02:54.8]} 6. Bb3 {[%clk 0:02:59]} 6... Bc5 {[%clk 0:02:55.4]}
7. c3 {[%clk 0:02:57.6]} 7... d6 {[%clk 0:02:54.3]} 8. d3 {[%clk 0:02:57.2]}
8... O-O {[%clk 0:02:46.3]} 9. a4 {[%clk 0:02:57]} 9... Rb8 {[%clk 0:02:40.2]}
10. axb5 {[%clk 0:02:56.9]} 10... axb5 {[%clk 0:02:41.1]} 11. Re1 {[%clk
0:02:56.8]} 11... h6 {[%clk 0:02:35.8]} 12. h3 {[%clk 0:02:54.2]} 12... Bb6
{[%clk 0:02:31.5]} 13. Na3 {[%clk 0:02:53.5]} 13... Ne7 {[%clk 0:02:07.6]} 14.
d4 {[%clk 0:02:39.4]} 14... b4 {[%clk 0:02:04.2]} 15. Nc4 {[%clk 0:02:37.1]}
15... bxc3 {[%clk 0:02:02.7]} 16. bxc3 {[%clk 0:02:38]} 16... exd4 {[%clk
0:01:52.2]} 17. cxd4 {[%clk 0:02:36.3]} 17... d5 {[%clk 0:01:49.9]} 18. Nxb6
{[%clk 0:02:35.2]} 18... Rxb6 {[%clk 0:01:50]} 19. e5 {[%clk 0:02:24.7]} 19...
Ne4 {[%clk 0:01:50]} 20. Ba3 {[%clk 0:02:23.8]} 20... Be6 {[%clk 0:01:47]} 21.
Bc2 {[%clk 0:02:21.8]} 21... Qd7 {[%clk 0:01:42.5]} 22. Bxe4 {[%clk 0:02:16.2]}
22... dxe4 {[%clk 0:01:42.4]} 23. Rxe4 {[%clk 0:02:17.1]} 23... Rd8 {[%clk
0:01:40.3]} 24. Bc5 {[%clk 0:02:10.8]} 24... Rb3 {[%clk 0:01:37.5]} 25. Re3
{[%clk 0:02:05.9]} 25... Rb7 {[%clk 0:01:22.8]} 26. Rea3 {[%clk 0:01:57.3]}
26... Nf5 {[%clk 0:01:17.5]} 27. Ra8 {[%clk 0:01:54.1]} 27... Bd5 {[%clk
0:01:13.1]} 28. Rxd8+ {[%clk 0:01:52.4]} 28... Qxd8 {[%clk 0:01:13.5]} 29. Qd3
{[%clk 0:01:51]} 29... g6 {[%clk 0:01:06.1]} 30. Nd2 {[%clk 0:01:45.5]} 30...
Ng7 {[%clk 0:01:01.5]} 31. Ne4 {[%clk 0:01:42.8]} 31... Ne6 {[%clk 0:00:57]} 32.
Nf6+ {[%clk 0:01:40.4]} 32... Kg7 {[%clk 0:00:56.7]} 33. Qd2 {[%clk 0:01:03.2]}
33... h5 {[%clk 0:00:46.3]} 34. Rc1 {[%clk 0:00:39.6]} 34... Rb3 {[%clk
0:00:44.9]} 35. f3 {[%clk 0:00:28.6]} 35... Qa8 {[%clk 0:00:36.9]} 36. Qc2
{[%clk 0:00:14]} 36... Nf4 {[%clk 0:00:25.3]} 37. Nxd5 {[%clk 0:00:12.3]} 37...
Qxd5 {[%clk 0:00:24]} 38. Rf1 {[%clk 0:00:12.9]} 38... Re3 {[%clk 0:00:22.2]}
39. Qd2 {[%clk 0:00:12.7]} 39... Qb3 {[%clk 0:00:20]} 40. d5 {[%clk 0:00:11]}
40... Ne2+ {[%clk 0:00:17.2]} 41. Kh2 {[%clk 0:00:09]} 41... Rxe5 {[%clk
0:00:17.8]} 42. Re1 {[%clk 0:00:06.6]} 42... Qxd5 {[%clk 0:00:18.2]} 43. Bb4
{[%clk 0:00:02.4]} 43... Qxd2 {[%clk 0:00:16.4]} 44. Bxd2 {[%clk 0:00:03.3]}
44... Re6 {[%clk 0:00:16.1]} 45. Rd1 {[%clk 0:00:03.2]} 45... c6 {[%clk
0:00:15.2]} 46. Re1 {[%clk 0:00:03.3]} 46... Nd4 {[%clk 0:00:14]} 47. Rc1 {[%clk
0:00:03.5]} 47... Nf5 {[%clk 0:00:13.6]} 48. Rc4 {[%clk 0:00:03.3]} 48... h4
{[%clk 0:00:13.6]} 49. Bc3+ {[%clk 0:00:03.7]} 49... Kh7 {[%clk 0:00:13]} 50.
Bd2 {[%clk 0:00:03.3]} 50... f6 {[%clk 0:00:12.5]} 51. Kg1 {[%clk 0:00:02.6]}
51... g5 {[%clk 0:00:12.9]} 52. Kf1 {[%clk 0:00:02.3]} 52... Kg6 {[%clk
0:00:13.4]} 53. Kf2 {[%clk 0:00:02.5]} 53... Ng3 {[%clk 0:00:13.4]} 54. Be3
{[%clk 0:00:03.2]} 54... f5 {[%clk 0:00:12.4]} 55. f4 {[%clk 0:00:03.1]} 55...
Ne4+ {[%clk 0:00:11.4]} 56. Kf3 {[%clk 0:00:03.1]} 56... gxf4 {[%clk 0:00:09.1]}
57. Bxf4 {[%clk 0:00:04]} 57... c5 {[%clk 0:00:09.1]} 58. Ra4 {[%clk 0:00:03.8]}
58... Rb6 {[%clk 0:00:08.9]} 59. Ra8 {[%clk 0:00:03.3]} 59... Rb3+ {[%clk
0:00:09.2]} 60. Be3 {[%clk 0:00:03.3]} 60... Rc3 {[%clk 0:00:06.2]} 61. Rg8+
{[%clk 0:00:02.7]} 61... Kf6 {[%clk 0:00:06.2]} 62. Kf4 {[%clk 0:00:03.4]} 62...
Ke6 {[%clk 0:00:05]} 63. Re8+ {[%clk 0:00:03.5]} 63... Kf7 {[%clk 0:00:05.1]}
64. Re5 {[%clk 0:00:03.8]} 64... Kg6 {[%clk 0:00:05]} 65. Re6+ {[%clk
0:00:03.2]} 65... Nf6 {[%clk 0:00:03]} 66. Rc6 {[%clk 0:00:03.5]} 66... Kf7
{[%clk 0:00:03]} 67. Kxf5 {[%clk 0:00:03.9]} 67... Rxe3 {[%clk 0:00:03.6]} 68.
Rxf6+ {[%clk 0:00:04.1]} 68... Kg7 {[%clk 0:00:03.6]} 69. Rc6 {[%clk 0:00:03.9]}
69... Rg3 {[%clk 0:00:04.1]} 70. Rc7+ {[%clk 0:00:02.3]} 70... Kh6 {[%clk
0:00:03.1]} 71. Rc6+ {[%clk 0:00:02.9]} 71... Kh7 {[%clk 0:00:01.8]} 72. Rxc5
{[%clk 0:00:02.4]} 72... Rxg2 {[%clk 0:00:01.5]} 73. Rc4 {[%clk 0:00:02.8]}
73... Kh6 {[%clk 0:00:02.1]} 74. Rxh4+ {[%clk 0:00:02.9]} 74... Kg7 {[%clk
0:00:03]} 75. Rg4+ {[%clk 0:00:03]} 75... Rxg4 {[%clk 0:00:02.5]} 76. hxg4
{[%clk 0:00:03.9]} 76... Kf7 {[%clk 0:00:03]} 77. g5 {[%clk 0:00:03.3]} 77...
Kg7 {[%clk 0:00:03.9]} 78. g6 {[%clk 0:00:03.8]} 78... Kg8 {[%clk 0:00:04.1]}
79. Kg5 {[%clk 0:00:03.2]} 79... Kg7 {[%clk 0:00:04.4]} 80. Kh5 {[%clk
0:00:03.2]} 80... Kg8 {[%clk 0:00:05]} 81. Kh6 {[%clk 0:00:03.9]} 81... Kh8
{[%clk 0:00:05.5]} 82. Kg5 {[%clk 0:00:04.8]} 82... Kg7 {[%clk 0:00:05.5]} 83.
Kh5 {[%clk 0:00:05.7]} 83... Kg8 {[%clk 0:00:05.9]} 84. Kh6 {[%clk 0:00:06.5]}
84... Kh8 {[%clk 0:00:06.4]} 85. g7+ {[%clk 0:00:07.4]} 85... Kg8 {[%clk
0:00:06.9]} 86. Kg6 {[%clk 0:00:08.3]} 1/2-1/2